bitfinex/quotes_SOLUSD_20250819
["timestamp","ask_amount","ask_price","bid_price","bid_amount"]
[1755628036349,4.61902085,178.85,178.83,7.21176115]
[1755628036649,4.61902085,178.85,178.84,7.15176115]
[1755628038107,4.61902085,178.87,178.84,7.15176115]
[1755628038342,4.61902085,178.87,178.86,7.15176115]
[1755628038629,4.61902085,178.88,178.86,7.15176115]
[1755628038830,4.61902085,178.88,178.87,7.15176115]
[1755628039022,4.61902085,178.87,178.83,0.06]
[1755628039220,5.27902085,178.87,178.83,0.06]
[1755628039428,5.27902085,178.87,178.86,7.15176115]
[1755628040137,4.61902085,178.87,178.86,7.15176115]
[1755628040645,4.61902085,178.87,178.85,7.15176115]
[1755628040646,5.27902085,178.87,178.85,7.15176115]
[1755628040816,5.27902085,178.87,178.86,7.15176115]
[1755628041021,4.61902085,178.86,178.83,0.06]
[1755628041226,4.61902085,178.85,178.83,7.21176115]
[1755628041533,4.61902085,178.86,178.84,7.15176115]
[1755628041715,4.61902085,178.85,178.83,0.06]
[1755628041915,4.61902085,178.87,178.83,0.06]
[1755628042322,4.61902085,178.86,178.83,0.06]
[1755628042540,4.61902085,178.87,178.83,0.06]
[1755628042736,4.61902085,178.86,178.83,0.06]
[1755628042938,4.61902085,178.86,178.85,7.15176115]
[1755628043528,4.61902085,178.87,178.85,7.15176115]
[1755628043733,4.61902085,178.86,178.85,7.15176115]
[1755628045156,4.61902085,178.86,178.83,0.06]
[1755628045346,4.61902085,178.86,178.85,7.15176115]
[1755628045659,4.61902085,178.86,178.83,7.21176115]
[1755628046157,0.66,178.85,178.83,7.21176115]
[1755628046529,0.66,178.85,178.84,7.15176115]
[1755628046737,0.03,178.9,178.84,7.15176115]
[1755628046738,4.61902085,178.87,178.84,7.15176115]
[1755628046945,4.61902085,178.87,178.86,7.15176115]
[1755628047341,5.27902085,178.87,178.86,7.15176115]
[1755628048763,4.61902085,178.86,178.83,0.06]
[1755628048934,4.61902085,178.86,178.84,7.15176115]
[1755628049264,0.66,178.85,178.84,7.15176115]
[1755628049460,0.66,178.85,178.83,7.21176115]
[1755628049645,7.15176115,178.89,178.83,7.21176115]
[1755628049646,0.66,178.84,178.83,7.21176115]
[1755628050248,0.66,178.84,178.83,0.06]
[1755628050747,5.27902085,178.84,178.83,0.06]
[1755628052542,5.27902085,178.84,178.83,7.21176115]
[1755628052736,4.61902085,178.85,178.83,7.21176115]
[1755628052955,5.27902085,178.85,178.84,7.15176115]
[1755628053459,4.61902085,178.84,178.83,0.06]
[1755628053765,12.430782,178.84,178.83,0.06]
[1755628053939,5.27902085,178.84,178.83,0.06]
[1755628054859,12.430782,178.84,178.83,0.06]
[1755628056071,5.27902085,178.84,178.83,0.06]
[1755628056263,12.430782,178.84,178.83,0.06]
[1755628056768,30.61902085,178.82,178.81,0.06]
[1755628056955,4.61902085,178.81,178.8,0.06]
[1755628057162,12.430782,178.81,178.8,0.06]
[1755628058463,31.76106596,178.81,178.8,0.06]
[1755628058666,13.59559401,178.8,178.79,0.06]
[1755628058843,28.70127788,178.8,178.79,0.06]
[1755628059165,33.32029873,178.8,178.79,0.06]
[1755628060165,26.16853758,178.8,178.79,0.06]
[1755628060870,53.010782,178.8,178.79,0.06]
[1755628062382,52.990782,178.8,178.79,0.06]
[1755628062678,73.88029873,178.8,178.79,0.06]
[1755628062965,73.88029873,178.8,178.77,0.06]
[1755628062966,51.36637601,178.78,178.77,0.06]
[1755628063173,25.50853758,178.75,178.74,0.06]
[1755628063385,66.08853758,178.75,178.74,0.06]
[1755628063678,66.74853758,178.75,178.74,0.06]
[1755628063976,66.60637601,178.75,178.74,0.06]
[1755628064656,53.010782,178.75,178.74,0.06]
[1755628066958,52.350782,178.75,178.74,0.06]
[1755628067153,79.010782,178.75,178.74,0.06]
[1755628069073,71.19902085,178.75,178.74,0.06]
[1755628069474,79.010782,178.75,178.74,0.06]
[1755628070964,71.19902085,178.75,178.74,0.06]
[1755628071161,79.010782,178.75,178.74,0.06]
[1755628073867,71.19902085,178.75,178.74,0.06]
[1755628076661,45.19902085,178.75,178.74,0.06]
[1755628078177,4.61902085,178.75,178.74,0.06]
[1755628079784,4.61902085,178.75,178.74,7.21176115]
[1755628080778,4.61902085,178.75,178.74,0.06]
[1755628080975,78.970782,178.75,178.74,0.06]
[1755628081288,26.0,178.73,178.72,0.06]
[1755628081469,78.310782,178.73,178.72,0.06]
[1755628081870,78.970782,178.73,178.72,0.06]
[1755628083586,71.81902085,178.73,178.72,0.06]
[1755628083767,78.970782,178.73,178.72,0.06]
[1755628085265,30.61902085,178.73,178.72,0.06]
[1755628085460,4.61902085,178.73,178.72,7.21176115]
[1755628085684,4.64902085,178.77,178.73,13.73775558]
[1755628085868,4.64902085,178.77,178.76,7.15176115]
[1755628086184,4.64902085,178.77,178.76,7.53176115]
[1755628086559,0.03,178.77,178.76,7.53176115]
[1755628086756,4.64902085,178.77,178.76,7.53176115]
[1755628087582,0.03,178.77,178.76,7.53176115]
[1755628087882,0.03,178.77,178.76,21.26951673]
[1755628088085,0.03,178.79,178.77,0.14216157]
[1755628088272,0.03,178.79,178.78,7.53176115]
[1755628088885,0.03,178.79,178.78,12.15078215]
[1755628089287,4.64902085,178.79,178.73,0.52216157]
[1755628089583,4.61902085,178.77,178.74,4.649021]
[1755628089811,4.61902085,178.77,178.74,5.029021]
[1755628090180,4.61902085,178.77,178.75,0.38]
[1755628090776,4.61902085,178.77,178.76,7.53176115]
[1755628091180,4.61902085,178.77,178.76,7.15176115]
[1755628093475,4.61902085,178.77,178.74,4.649021]
[1755628093989,4.61902085,178.77,178.76,7.15176115]
[1755628094190,4.64902085,178.77,178.76,7.15176115]
[1755628096626,4.64902085,178.77,178.76,7.53176115]
[1755628096917,0.03,178.77,178.76,7.53176115]
[1755628098491,0.03,178.77,178.76,7.15176115]
[1755628099910,5.30902085,178.77,178.75,13.737756]
[1755628100216,4.64902085,178.77,178.76,7.15176115]
[1755628100588,5.30902085,178.77,178.76,7.15176115]
[1755628100782,4.64902085,178.77,178.76,7.15176115]
[1755628102607,0.03,178.77,178.76,7.15176115]
[1755628102906,0.03,178.77,178.76,21.26951673]
[1755628103290,0.03,178.77,178.76,20.88951673]
[1755628104305,0.03,178.77,178.76,7.15176115]
[1755628107018,4.61902085,178.78,178.77,0.393145]
[1755628107395,4.61902085,178.78,178.77,7.54490615]
[1755628108232,5.27902085,178.78,178.77,7.54490615]
[1755628109645,5.27902085,178.78,178.77,7.15176115]
[1755628109834,5.27902085,178.78,178.76,7.15176115]
[1755628110011,4.61902085,178.78,178.76,7.15176115]
[1755628110309,4.61902085,178.77,178.76,7.15176115]
[1755628111202,4.61902085,178.78,178.76,7.15176115]
[1755628111403,4.61902085,178.78,178.77,7.15176115]
[1755628113321,5.27902085,178.78,178.74,7.21176115]
[1755628113631,0.66,178.77,178.74,11.83078215]
[1755628113810,0.66,178.77,178.75,7.15176115]
[1755628114009,4.61902085,178.77,178.76,7.15176115]
[1755628114715,4.61902085,178.77,178.75,7.15176115]
[1755628117134,5.30902085,178.79,178.75,7.15176115]
[1755628117303,4.61902085,178.77,178.75,7.15176115]
[1755628119017,4.61902085,178.77,178.75,11.77078215]
[1755628119219,4.61902085,178.77,178.74,0.20216157]
[1755628119413,4.61902085,178.77,178.75,7.15176115]
[1755628120940,4.64902085,178.79,178.76,7.15176115]
[1755628121237,4.64902085,178.79,178.78,7.15176115]
[1755628121612,0.03,178.79,178.78,7.15176115]
[1755628121812,0.03,178.79,178.78,7.81176115]
[1755628122734,0.03,178.79,178.78,7.15176115]
[1755628123213,4.64902085,178.79,178.77,4.649021]
[1755628123442,5.30902085,178.79,178.76,47.65176115]
[1755628123612,5.30902085,178.79,178.76,52.30078215]
[1755628123814,4.64902085,178.79,178.77,7.15176115]
[1755628124521,5.30902085,178.79,178.76,52.30078215]
[1755628125425,4.64902085,178.79,178.76,52.30078215]
[1755628126315,4.64902085,178.79,178.76,53.02078215]
[1755628126738,4.64902085,178.79,178.78,26.0]
[1755628127223,4.64902085,178.79,178.76,53.02078215]
[1755628128842,4.64902085,178.79,178.76,52.36078215]
[1755628129438,4.64902085,178.79,178.76,45.209021]
[1755628129642,5.30902085,178.79,178.76,45.209021]
[1755628130046,4.64902085,178.79,178.76,52.36078215]
[1755628130246,4.64902085,178.79,178.77,7.81176115]
[1755628130757,4.64902085,178.79,178.77,7.15176115]
[1755628131742,0.66,178.78,178.76,45.209021]
[1755628131943,5.30902085,178.79,178.76,52.36078215]
[1755628133364,4.64902085,178.79,178.76,45.209021]
[1755628133656,5.27902085,178.78,178.76,40.56]
[1755628134040,4.61902085,178.77,178.76,40.56]
[1755628134239,5.27902085,178.77,178.76,0.06]
[1755628135153,4.61902085,178.77,178.76,0.06]
[1755628137626,5.27902085,178.77,178.76,0.06]
[1755628140163,4.61902085,178.77,178.76,0.06]
[1755628140555,0.03,178.79,178.76,21.60951673]
[1755628140756,0.03,178.79,178.77,0.66]
[1755628140962,5.30902085,178.79,178.77,40.48]
[1755628141169,4.64902085,178.79,178.77,47.63176115]
[1755628141751,0.03,178.79,178.77,47.63176115]
[1755628141959,4.61902085,178.78,178.77,47.63176115]
[1755628142274,0.03,178.79,178.77,48.29176115]
[1755628142445,0.03,178.79,178.78,7.15176115]
[1755628143041,0.03,178.79,178.78,21.54951673]
[1755628144083,0.03,178.79,178.78,20.88951673]
[1755628144373,4.61902085,178.78,178.76,48.361761]
[1755628144575,5.29902085,178.78,178.76,0.06]
[1755628145039,0.68,178.77,178.76,0.06]
[1755628147283,5.29902085,178.77,178.76,0.06]
[1755628147485,0.68,178.77,178.76,0.06]
[1755628147775,5.29902085,178.77,178.76,0.06]
[1755628149804,12.450782,178.77,178.76,0.06]
[1755628152994,5.29902085,178.77,178.76,0.06]
[1755628153297,12.450782,178.77,178.76,0.06]
[1755628153795,17.10324325,178.77,178.76,0.06]
[1755628153994,37.770782,178.75,178.74,0.06]
[1755628154152,4.61902085,178.73,178.72,0.06]
[1755628154360,30.61902085,178.71,178.7,0.06]
[1755628154584,37.770782,178.71,178.7,0.06]
[1755628154768,38.450782,178.71,178.7,0.06]
[1755628155082,31.29902085,178.71,178.7,0.06]
[1755628155263,38.450782,178.71,178.7,0.06]
[1755628155464,30.61902085,178.71,178.7,0.06]
[1755628156371,31.29902085,178.71,178.7,0.06]
[1755628158470,38.450782,178.71,178.7,0.06]
[1755628160382,44.04643976,178.71,178.7,0.06]
[1755628160587,38.450782,178.71,178.7,0.06]
[1755628161755,31.29902085,178.71,178.7,0.06]
[1755628161973,78.910782,178.71,178.7,0.06]
[1755628164059,84.50643976,178.71,178.7,0.06]
[1755628164255,98.10203377,178.71,178.7,0.06]
[1755628164687,98.24419534,178.71,178.7,0.06]
[1755628166189,4.61902085,178.7,178.68,0.06]
[1755628166392,5.29902085,178.7,178.68,0.06]
[1755628166691,12.450782,178.7,178.68,0.06]
[1755628167671,18.0467529,178.7,178.68,0.06]
[1755628170179,149.0467529,178.7,178.68,0.06]
[1755628173471,4.61902085,178.69,178.68,0.06]
[1755628173790,52.910782,178.69,178.68,0.06]
[1755628173996,58.50706606,178.69,178.68,0.06]
[1755628183093,65.65882721,178.69,178.68,0.06]
[1755628184103,18.35677643,178.68,178.67,0.06]
[1755628184308,32.66029873,178.68,178.67,0.06]
[1755628184505,38.90689599,178.68,178.67,0.06]
[1755628184712,4.61902085,178.67,178.66,0.06]
[1755628185023,52.860782,178.67,178.66,0.06]
[1755628186207,44.35677643,178.65,178.64,0.06]
[1755628186522,97.54607466,178.65,178.64,0.06]
[1755628186821,98.19607466,178.65,178.64,0.06]
[1755628188222,78.210782,178.65,178.64,0.77]
[1755628188399,78.190782,178.65,178.64,0.77]
[1755628189596,78.190782,178.65,178.64,0.06]
[1755628195729,84.43831908,178.65,178.64,0.06]
[1755628196030,78.190782,178.65,178.64,0.06]
[1755628196208,71.03902085,178.65,178.64,0.06]
[1755628196411,78.190782,178.65,178.64,0.06]
[1755628196611,78.190782,178.65,178.64,0.77]
[1755628197239,78.190782,178.65,178.64,0.06]
[1755628200551,98.17607466,178.65,178.64,0.06]
[1755628200728,98.17607466,178.65,178.62,0.06]
[1755628200729,30.61902085,178.63,178.62,0.06]
[1755628201070,4.61902085,178.59,178.58,0.06]
[1755628201358,52.170782,178.59,178.58,0.06]
[1755628201560,45.01902085,178.59,178.58,0.06]
[1755628201724,52.170782,178.59,178.58,0.06]
[1755628202118,52.170782,178.59,178.58,0.77]
[1755628202554,45.01902085,178.59,178.58,0.77]
[1755628202843,4.61902085,178.59,178.58,0.77]
[1755628203534,4.61902085,178.59,178.58,7.92176115]
[1755628203850,4.61902085,178.6,178.58,0.77]
[1755628204041,4.61902085,178.6,178.59,7.86176115]
[1755628204244,4.61902085,178.62,178.59,7.86176115]
[1755628204444,4.61902085,178.62,178.61,7.15176115]
[1755628204648,4.61902085,178.62,178.61,7.84176115]
[1755628205150,40.43,178.66,178.62,13.59559401]
[1755628205151,4.61902085,178.65,178.62,13.59559401]
[1755628205343,0.03,178.66,178.64,7.15176115]
[1755628205654,4.61902085,178.65,178.64,7.15176115]
[1755628205837,4.61902085,178.65,178.64,7.84176115]
[1755628206862,4.64902085,178.66,178.64,7.84176115]
[1755628207066,0.03,178.66,178.65,7.84176115]
[1755628207356,4.64902085,178.66,178.65,7.84176115]
[1755628207752,4.64902085,178.66,178.65,0.69]
[1755628208333,0.03,178.66,178.65,0.69]
[1755628208535,4.64902085,178.66,178.65,0.69]
[1755628211273,4.61902085,178.61,178.56,0.06]
[1755628211439,4.61902085,178.61,178.56,7.21176115]
[1755628211633,4.61902085,178.61,178.58,0.20216157]
[1755628211838,4.61902085,178.61,178.59,0.69]
[1755628212264,4.61902085,178.61,178.6,26.0]
[1755628212644,4.61902085,178.61,178.6,26.69]
[1755628212941,4.61902085,178.62,178.6,26.69]
[1755628213280,4.61902085,178.62,178.58,7.21176115]
[1755628213281,4.61902085,178.62,178.61,26.0]
[1755628213442,4.61902085,178.6,178.58,0.06]
[1755628213642,11.770782,178.59,178.58,0.06]
[1755628213858,4.61902085,178.59,178.58,26.75]
[1755628214986,4.61902085,178.59,178.58,0.75]
[1755628215364,4.61902085,178.59,178.58,0.06]
[1755628217079,11.770782,178.59,178.58,0.06]
[1755628217472,4.61902085,178.59,178.58,0.75]
[1755628217770,4.61902085,178.62,178.58,7.90176115]
[1755628217976,4.61902085,178.61,178.6,7.15176115]
[1755628218182,4.61902085,178.63,178.6,7.15176115]
[1755628219087,4.61902085,178.61,178.6,7.15176115]
[1755628219461,4.61902085,178.62,178.6,7.15176115]
[1755628219662,4.61902085,178.62,178.61,0.69]
[1755628220681,4.61902085,178.63,178.61,0.69]
[1755628220887,4.61902085,178.63,178.62,0.69]
[1755628221382,4.61902085,178.64,178.62,7.84176115]
[1755628221579,0.03,178.66,178.64,13.73775558]
[1755628221778,0.03,178.66,178.65,20.88951673]
[1755628221955,0.03,178.66,178.65,21.57951673]
[1755628226700,0.03,178.67,178.66,13.73775558]
[1755628226877,0.03,178.67,178.66,21.4492391]
[1755628227069,0.03,178.67,178.66,22.1392391]
[1755628227972,0.03,178.68,178.67,28.04127788]
[1755628228302,0.03,178.68,178.67,21.57951673]
[1755628228769,0.03,178.68,178.67,23.82236073]
[1755628230596,0.03,178.68,178.67,23.13236073]
[1755628230798,0.03,178.68,178.67,20.88951673]
[1755628230966,0.03,178.68,178.67,21.57951673]
[1755628231167,0.03,178.68,178.67,48.13920778]
[1755628231391,0.03,178.68,178.67,22.13920778]
[1755628232574,0.03,178.68,178.67,23.82248673]
[1755628232985,0.03,178.68,178.67,49.82248673]
[1755628233779,0.03,178.68,178.67,23.82248673]
[1755628235389,0.03,178.68,178.67,23.13248673]
[1755628235975,0.03,178.68,178.67,20.88951673]
[1755628236375,0.03,178.68,178.67,13.59559401]
[1755628236590,0.7,178.68,178.67,13.59559401]
[1755628237012,0.7,178.68,178.67,13.73775558]
[1755628237306,0.03,178.68,178.67,20.74735516]
[1755628237702,0.7,178.68,178.67,13.73775558]
[1755628237906,0.7,178.68,178.67,13.59559401]
[1755628238077,0.7,178.68,178.64,26.0]
[1755628238078,0.7,178.68,178.64,7.151761]
[1755628238278,7.15176115,178.67,178.64,47.471761]
[1755628238495,7.15176115,178.67,178.64,40.32]
[1755628238702,0.67,178.66,178.64,40.32]
[1755628239285,0.67,178.65,178.64,54.05775558]
[1755628241508,5.28902085,178.67,178.64,54.05775558]
[1755628241813,7.18176115,178.68,178.65,21.57951673]
[1755628241814,4.64902085,178.68,178.65,21.57951673]
[1755628241985,0.03,178.68,178.67,13.73775558]
[1755628242312,0.03,178.68,178.67,61.87951673]
[1755628242684,0.03,178.68,178.67,61.18951673]
[1755628242913,0.03,178.68,178.67,61.87951673]
[1755628244397,0.03,178.68,178.67,61.18951673]
[1755628244598,0.03,178.68,178.67,40.3]
[1755628244800,0.7,178.68,178.67,40.3]
[1755628244989,0.7,178.68,178.64,13.65559401]
[1755628244990,7.85176115,178.68,178.65,40.3]
[1755628245198,0.67,178.67,178.65,40.3]
[1755628248203,0.03,178.68,178.66,20.88951673]
[1755628248396,0.03,178.68,178.67,61.87951673]
[1755628248709,0.03,178.68,178.67,87.87951673]
[1755628248905,0.03,178.7,178.69,39.59559401]
[1755628249112,0.03,178.7,178.69,87.74914513]
[1755628249293,0.03,178.7,178.69,88.43914513]
[1755628251013,0.03,178.7,178.69,61.18951673]
[1755628252003,0.7,178.7,178.69,54.03775558]
[1755628252388,0.03,178.7,178.69,54.03775558]
[1755628253492,0.03,178.7,178.69,61.18951673]
[1755628254386,0.03,178.7,178.69,54.03775558]
[1755628254590,0.03,178.7,178.69,61.18951673]
[1755628256304,0.03,178.7,178.69,61.87951673]
[1755628256493,0.03,178.7,178.69,20.88951673]
[1755628256688,0.03,178.7,178.69,61.16951673]
[1755628260390,0.03,178.7,178.69,62.41914513]
[1755628260587,0.03,178.7,178.69,67.06816613]
[1755628261238,0.03,178.7,178.69,73.06706236]
[1755628261412,0.03,178.72,178.71,39.59559401]
[1755628261595,0.03,178.72,178.71,87.7090825]
[1755628261792,0.03,178.72,178.71,88.3990825]
[1755628263337,0.03,178.73,178.71,62.3990825]
[1755628263520,0.03,178.74,178.72,21.57951673]
[1755628263840,0.03,178.74,178.73,61.70901989]
[1755628264004,0.03,178.74,178.73,62.39901989]
[1755628264425,0.03,178.74,178.73,54.55725874]
[1755628264721,0.03,178.74,178.73,62.39901989]
[1755628266391,0.03,178.74,178.73,21.30685832]
[1755628266596,0.03,178.74,178.73,61.56685832]
[1755628266939,0.03,178.74,178.73,61.70901989]
[1755628267313,0.73,178.74,178.73,61.00735516]
[1755628267625,0.73,178.74,178.73,53.99775558]
[1755628267958,0.73,178.74,178.73,53.85559401]
[1755628268455,0.73,178.74,178.73,61.14951673]
[1755628268801,0.73,178.74,178.73,53.99775558]
[1755628274312,0.73,178.74,178.73,61.14951673]
[1755628274517,0.03,178.74,178.73,61.14951673]
[1755628274736,0.03,178.74,178.73,53.99775558]
[1755628275239,0.73,178.74,178.73,40.26]
[1755628275432,12.500782,178.74,178.7,26.0]
[1755628275631,0.7,178.73,178.71,40.24]
[1755628275961,4.61902085,178.72,178.71,40.24]
[1755628276241,5.31902085,178.72,178.71,40.24]
[1755628276744,12.470782,178.72,178.71,40.24]
[1755628277134,5.31902085,178.72,178.71,40.24]
[1755628277622,11.800782,178.74,178.71,53.83559401]
[1755628277942,5.34902085,178.74,178.72,13.73775558]
[1755628278745,0.7,178.73,178.72,13.73775558]
[1755628279116,7.85176115,178.73,178.71,40.24]
[1755628279310,0.7,178.72,178.71,40.24]
[1755628279537,0.7,178.72,178.71,53.97775558]
[1755628281240,4.64902085,178.74,178.72,13.73775558]
[1755628281450,4.64902085,178.74,178.72,53.95775558]
[1755628281630,5.34902085,178.74,178.72,53.95775558]
[1755628283350,0.03,178.74,178.72,53.95775558]
[1755628283528,0.03,178.74,178.73,21.57951673]
[1755628285648,0.03,178.74,178.73,20.88951673]
[1755628286755,0.03,178.74,178.73,21.57951673]
[1755628287344,0.03,178.74,178.73,20.88951673]
[1755628287738,0.03,178.74,178.73,21.57951673]
[1755628289350,0.03,178.74,178.73,20.88951673]
[1755628289655,0.03,178.74,178.73,21.57951673]
[1755628291258,0.03,178.74,178.73,23.82173273]
[1755628291562,0.03,178.74,178.73,29.82062896]
[1755628291968,0.03,178.75,178.74,13.73775558]
[1755628292173,0.03,178.75,178.74,61.64898858]
[1755628292370,0.03,178.75,178.74,62.33898858]
[1755628293750,0.03,178.76,178.75,19.11873473]
[1755628293954,0.03,178.76,178.75,26.96049588]
[1755628294162,0.03,178.76,178.75,21.57951673]
[1755628294370,0.03,178.77,178.76,20.88951673]
[1755628294669,0.03,178.77,178.76,62.34892599]
[1755628296071,0.03,178.77,178.76,61.64892599]
[1755628297494,0.03,178.77,178.76,89.33122973]
[1755628297659,0.72,178.77,178.76,89.33122973]
[1755628298165,0.03,178.77,178.76,89.33122973]
[1755628299454,0.03,178.77,178.76,82.15946858]
[1755628299681,0.72,178.77,178.76,89.31122973]
[1755628299864,0.72,178.77,178.76,39.59559401]
[1755628300164,0.72,178.77,178.76,79.91775558]
[1755628300369,0.72,178.77,178.76,79.77559401]
[1755628301688,0.72,178.77,178.76,79.91775558]
[1755628305164,0.72,178.77,178.76,87.06951673]
[1755628305689,0.72,178.77,178.76,79.91775558]
[1755628306993,0.72,178.77,178.76,53.91775558]
[1755628312397,0.03,178.77,178.76,61.76951673]
[1755628312594,0.03,178.77,178.76,66.41853773]
[1755628313578,0.03,178.77,178.76,91.71853773]
[1755628314300,0.03,178.77,178.76,92.41853773]
[1755628315585,0.03,178.77,178.76,92.97794699]
[1755628316981,0.03,178.77,178.76,92.41853773]
[1755628320389,0.03,178.77,178.76,91.71853773]
[1755628321085,0.03,178.77,178.76,92.41853773]
[1755628321601,0.03,178.77,178.76,66.41853773]
[1755628321775,0.03,178.77,178.76,72.97608377]
[1755628322181,0.03,178.77,178.76,152.87608377]
[1755628322371,0.03,178.77,178.76,152.31667451]
[1755628322807,0.03,178.8,178.79,13.59559401]
[1755628323106,0.03,178.81,178.8,13.73775558]
[1755628323285,0.03,178.81,178.8,28.04127788]
[1755628323484,0.03,178.81,178.8,21.58951673]
[1755628323688,0.03,178.81,178.8,20.88951673]
[1755628324085,0.03,178.81,178.8,21.58951673]
[1755628325310,0.03,178.81,178.8,28.74127788]
[1755628326907,0.03,178.81,178.8,61.00951673]
[1755628328323,0.03,178.81,178.8,61.71951673]
[1755628329619,0.03,178.81,178.8,61.00951673]
[1755628330490,0.03,178.81,178.8,87.00951673]
[1755628330692,0.03,178.81,178.8,166.90951673]
[1755628331416,0.03,178.81,178.8,87.00951673]
[1755628332188,0.03,178.81,178.8,89.25072673]
[1755628341336,0.03,178.81,178.8,89.21072673]
[1755628342308,0.72,178.81,178.8,42.03896558]
[1755628342509,0.72,178.81,178.8,40.12]
[1755628342697,0.72,178.81,178.8,53.71559401]
[1755628343617,0.72,178.81,178.8,53.85775558]
[1755628343821,7.87176115,178.81,178.8,40.12]
[1755628344023,12.490782,178.81,178.8,0.06]
[1755628348226,0.72,178.81,178.8,0.20216157]
[1755628348410,5.33902085,178.81,178.8,0.20216157]
[1755628348730,0.72,178.81,178.8,0.20216157]
[1755628349723,12.490782,178.81,178.8,0.06]
[1755628350524,5.33902085,178.81,178.8,0.06]
[1755628350725,0.03,178.81,178.8,0.06]
[1755628350926,0.03,178.81,178.8,53.71559401]
[1755628351124,0.72,178.81,178.8,53.71559401]
[1755628351361,0.03,178.81,178.8,53.71559401]
[1755628351528,0.72,178.81,178.8,53.71559401]
[1755628352541,0.03,178.81,178.8,53.71559401]
[1755628352826,0.03,178.81,178.8,87.71951673]
[1755628354821,0.03,178.81,178.8,89.96085273]
[1755628358138,0.03,178.81,178.8,63.96085273]
[1755628358465,0.03,178.81,178.8,77.11075066]
[1755628358824,0.03,178.81,178.8,82.70359182]
[1755628359832,0.03,178.81,178.8,83.26287593]
[1755628360028,0.03,178.81,178.8,163.16287593]
[1755628360229,0.03,178.83,178.81,19.73589236]
[1755628360434,0.03,178.83,178.82,61.48873829]
[1755628360642,0.03,178.83,178.82,62.19873829]
[1755628361358,0.03,178.85,178.83,19.73589236]
[1755628361532,0.03,178.85,178.84,61.48867575]
[1755628361732,0.03,178.85,178.84,62.19867575]
[1755628362837,0.03,178.85,178.84,68.19681253]
[1755628363831,0.03,178.85,178.84,70.43714453]
[1755628364056,0.03,178.85,178.84,155.92873477]
[1755628364258,0.03,178.85,178.84,160.7505549]
[1755628365546,0.03,178.85,178.84,155.15896466]
[1755628367457,0.03,178.85,178.84,108.88582394]
[1755628367638,0.75,178.85,178.84,63.00768716]
[1755628367842,0.75,178.85,178.84,63.14984873]
[1755628368051,0.75,178.85,178.84,63.00768716]
[1755628368363,0.75,178.85,178.84,63.14984873]
[1755628369830,0.75,178.85,178.84,81.85592601]
[1755628370646,0.75,178.85,178.84,81.99808758]
[1755628370843,0.75,178.85,178.84,89.14984873]
[1755628371569,0.03,178.85,178.84,89.14984873]
[1755628372736,0.03,178.85,178.84,63.85984873]
[1755628372936,0.03,178.87,178.85,13.73775558]
[1755628373158,0.03,178.87,178.85,21.59951673]
[1755628373544,0.03,178.87,178.85,23.83984873]
[1755628374639,0.03,178.87,178.85,109.33112633]
[1755628374971,0.03,178.87,178.85,120.71024226]
[1755628375213,0.03,178.87,178.86,62.15861323]
[1755628376865,0.03,178.87,178.86,67.74957823]
[1755628377252,0.03,178.87,178.86,62.15861323]
[1755628379168,0.03,178.87,178.86,61.44861323]
[1755628379889,0.75,178.87,178.86,61.44861323]
[1755628380060,0.75,178.87,178.86,60.88951673]
[1755628380256,0.75,178.87,178.86,13.59559401]
[1755628380457,7.90176115,178.87,178.85,2.240332]
[1755628380655,7.87176115,178.86,178.85,1.520332]
[1755628380855,7.87176115,178.86,178.85,0.860332]
[1755628381553,4.61902085,178.85,178.84,53.63559401]
[1755628381753,12.390782,178.85,178.84,53.63559401]
[1755628382172,12.390782,178.85,178.84,53.77775558]
[1755628382582,5.23902085,178.85,178.84,53.77775558]